[Event "37th Belgrade Trophy 2024"]
[Site "Belgrade"]
[Date "2024.11.29"]
[Round "7.9"]
[White "Baghdasaryan, Davit"]
[Black "Khaleev, Timofey D"]
[Result "1-0"]
[ECO "B27"]
[WhiteElo "2121"]
[BlackElo "1743"]
[Annotator "RC"]
[PlyCount "151"]
[EventDate "2024.11.23"]
[EventCountry "SRB"]
[SourceTitle "playchess.com"]
[Source "ChessBase"]
[SourceQuality "1"]
[TimeControl "40/5400+30:900+30"]

1. e4 {[%emt 0:00:02]} c5 {[%emt 0:00:03]} 2. Nf3 {[%emt 0:00:29]} g6 {[%emt 0:00:04]} 3. d4 {[%emt 0:01:16]} cxd4 {[%emt 0:00:05]} 4. Qxd4 {[%emt 0:00:01]} Nf6 {[%emt 0:00:09]} 5. Nc3 {[%emt 0:00:05]} Nc6 {[%emt 0:00:47]} 6. Qa4 {[%emt 0:00:10]} d6 {[%emt 0:00:06]} 7. e5 {[%emt 0:00:52]} dxe5 {[%emt 0:00:05]} 8. Nxe5 {[%emt 0:00:07]} Bd7 {[%emt 0:01:19]} 9. Nxd7 {[%emt 0:00:20]} Qxd7 {[%emt 0:00:11]} 10. Be3 {[%emt 0:00:14]} Bg7 {[%emt 0:05:45]} 11. Rd1 {[%emt 0:00:07]} Qc8 {[%emt 0:02:31]} 12. Be2 {[%emt 0:00:20]} O-O {[%emt 0:00:27]} 13. O-O {[%emt 0:00:18]} Qf5 {[%emt 0:07:37]} 14. Bf3 {[%emt 0:30:40]} h5 {[%emt 0:13:30]} 15. Nd5 {[%emt 0:09:12]} Nxd5 {[%emt 0:06:11]} 16. Rxd5 {[%emt 0:01:35]} Ne5 {[%emt 0:04:11]} 17. Be4 {[%emt 0:00:53]} Qe6 {[%emt 0:02:11]} 18. Rb5 {[%emt 0:05:58]} Ng4 {[%emt 0:03:40]} 19. Bf4 {[%emt 0:11:27]} Rad8 {[%emt 0:06:31]} 20. c3 {[%emt 0:12:14]} b6 {[%emt 0:10:53]} 21. h3 {[%emt 0:01:51]} Nf6 {[%emt 0:01:50]} 22. Bf3 {[%emt 0:00:23]} Rd3 {[%emt 0:05:41]} 23. Re5 {[%emt 0:04:45]} Qc8 {[%emt 0:05:34]} 24. Be2 {[%emt 0:03:00]} Qd7 {[%emt 0:02:32]} 25. Qa6 {[%emt 0:03:48]} Rd5 {[%emt 0:01:06]} 26. Bb5 {[%emt 0:01:26]} Qc8 {[%emt 0:03:00]} 27. Qxc8 {[%emt 0:05:02]} Rxc8 {[%emt 0:00:07]} 28. c4 {[%emt 0:00:35]} Rxe5 {[%emt 0:00:13]} 29. Bxe5 {[%emt 0:00:01]} Rd8 {[%emt 0:02:11]} 30. b4 {[%emt 0:00:58]} Rd2 {[%emt 0:01:18]} 31. a4 {[%emt 0:02:26]} Ne4 {[%emt 0:03:37]} 32. Bxg7 {[%emt 0:00:42]} Kxg7 {[%emt 0:00:07]} 33. Re1 {[%emt 0:00:08]} Nxf2 {[%emt 0:00:19]} 34. Rxe7 {[%emt 0:00:13]} Nd3 {[%emt 0:01:01]} 35. Rd7 {[%emt 0:00:53]} Rd1+ {[%emt 0:01:17]} 36. Kh2 {[%emt 0:00:03]} Nf2 {[%emt 0:01:30]} 37. Rxa7 {[%emt 0:01:13]} h4 {[%emt 0:01:23]} 38. g3 {[%emt 0:00:08]} Rd2 {[%emt 0:02:06]} 39. gxh4 {[%emt 0:00:39]} Nd3+ {[%emt 0:00:23]} 40. Kg3 {[%emt 0:01:39]} Nxb4 {[%emt 0:00:08]} 41. Be8 {[%emt 0:16:57]} Rd3+ {[%emt 0:16:33]} 42. Kg2 {[%emt 0:00:14]} Rd6 {[%emt 0:01:10]} 43. Bxf7 {[%emt 0:01:57]} Kf6 {[%emt 0:00:47]} 44. h5 {[%emt 0:00:00]} Rd2+ {[%emt 0:00:00]} 45. Kf1 {[%emt 0:00:00]} gxh5 {[%emt 0:00:00]} 46. Bxh5 {[%emt 0:00:00]} Kg5 {[%emt 0:00:00]} 47. Be2 {[%emt 0:00:00]} Ra2 {[%emt 0:00:00]} 48. Rb7 {[%emt 0:00:00]} Rxa4 {[%emt 0:00:00]} 49. Rxb6 {[%emt 0:00:00]} Nc2 {[%emt 0:00:00]} 50. c5 {[%emt 0:00:00]} Rf4+ {[%emt 0:00:00]} 51. Kg1 {[%emt 0:00:00]} Nd4 {[%emt 0:00:00]} 52. Bd1 {[%emt 0:00:51]} Rf5 {[%emt 0:00:00]} 53. Rb4 {[%emt 0:01:09]} Nc6 {[%emt 0:00:00]} 54. Rc4 {[%emt 0:00:31]} Rf4 {[%emt 0:00:00]} 55. Rxf4 {[%emt 0:01:28]} Kxf4 {[%emt 0:00:00]} 56. Kf2 {[%emt 0:00:20]} Nb4 {[%emt 0:00:00]} 57. Be2 {[%emt 0:00:33]} Ke4 {[%emt 0:00:00]} 58. h4 {[%emt 0:00:51]} Kf5 {[%emt 0:02:52]} 59. Ke3 {[%emt 0:01:21]} Nd5+ {[%emt 0:01:01]} 60. Kd4 {[%emt 0:01:18]} Nf4 {[%emt 0:01:41]} 61. Bc4 {[%emt 0:00:05]} Kg4 {[%emt 0:00:35]} 62. c6 {[%emt 0:01:56]} Ng6 {[%emt 0:00:27]} 63. c7 {[%emt 0:00:34]} Ne7 {[%emt 0:00:05]} 64. Ke5 {[%emt 0:00:39]} Kxh4 {[%emt 0:01:21]} 65. Kf6 {[%emt 0:00:32]} Nc8 {[%emt 0:00:24]} 66. Ke6 {[%emt 0:00:25]} Kg5 {[%emt 0:01:42]} 67. Ba6 {[%emt 0:00:29]} Na7 {[%emt 0:00:19]} 68. Kd6 {[%emt 0:00:35]} Kf6 {[%emt 0:00:37]} 69. Bc4 {[%emt 0:00:22]} Kf5 {[%emt 0:04:11]} 70. Kc5 {[%emt 0:00:27]} Ke5 {[%emt 0:00:49]} 71. Kb6 {[%emt 0:00:39]} Nc8+ {[%emt 0:00:10]} 72. Kc6 {[%emt 0:00:11]} Nd6 {[%emt 0:01:24]} 73. Bb3 {[%emt 0:00:45]} Nc8 {[%emt 0:00:23]} 74. Bd1 {[%emt 0:00:33]} Kd4 {[%emt 0:01:16]} 75. Bg4 {[%emt 0:00:28]} Na7+ {[%emt 0:00:22]} 76. Kb6 {[%emt 0:00:05]} 1-0